fUST/lending_fUST_20250615
["ID","MTS","AMOUNT","RATE_DAILY","PERIOD"]
[365816863,1749934247767,-365.2762568,0.0002389,2]
[365816864,1749934247776,-365.2762568,0.0002389,2]
[365816865,1749934247786,-365.2762568,0.0002389,2]
[365816866,1749934247795,-365.2762568,0.0002389,2]
[365816867,1749934247806,-365.2762568,0.0002389,2]
[365816868,1749934247816,-365.2762568,0.0002389,2]
[365816869,1749934247826,-365.2762568,0.0002389,2]
[365816870,1749934247836,-365.2762568,0.0002389,2]
[365816871,1749934247846,-233.7867369,0.0002389,2]
[365816872,1749934247855,-156.0,0.000239,2]
[365816873,1749934247865,-426.07914722,0.000239,2]
[365816874,1749934247874,-200.0,0.000239,3]
[365816875,1749934247884,-82941.33,0.000239,7]
[365816876,1749934247893,-845.10789306,0.000239,7]
[365816877,1749934247902,-12533.30537164,0.000239,7]
[365816878,1749934247912,-639.0,0.000239,2]
[365816879,1749934247921,-5738.07650511,0.000239,2]
[365816880,1749934247931,-215.0738,0.00023907,2]
[365816881,1749934247940,-724.0,0.00023917,4]
[365816882,1749934247949,-724.0,0.00023944,4]
[365816883,1749934247960,-852.58,0.00023954,6]
[365816884,1749934247969,-1035.41086188,0.00023969,10]
[365816885,1749934247978,-724.0,0.00023972,4]
[365816886,1749934247988,-501.91821307,0.0002398,9]
[365816887,1749934247999,-500.0,0.0002398,9]
[365816888,1749934248009,-9189.21812488,0.0002398,2]
[365816889,1749934248124,-10645.0,0.0002398,2]
[365816890,1749934248353,-460.0,0.00021917,4]
[365816891,1749934248363,-168.07994512,0.00022191,4]
[365816892,1749934248374,-566.60561565,0.00023287,4]
[365816893,1749934248384,-160.0,0.00023418,2]
[365816894,1749934248395,-1014.6817033,0.00023561,4]
[365816895,1749934248407,-2073.4082967,0.00023561,4]
[365816896,1749934248417,-2190.54715414,0.00023835,4]
[365816897,1749934248469,-154.15271675,0.0002209,2]
[365816898,1749934248480,-897.54284586,0.00023835,4]
[365816899,1749934248491,-5268.64052073,0.0002398,2]
[365816900,1749934248659,-153.85728304,0.00021817,2]
[365816901,1749934248669,-229.82479369,0.00023418,2]
[365816902,1749934248679,-213.28201367,0.00023418,2]
[365816903,1749934248689,-247.364,0.00023745,2]
[365816904,1749934248700,-247.37913508,0.0002398,2]
[365816905,1749934248712,-3873.48940087,0.0002398,2]
[365816939,1749935116983,184.363976,0.00013699,2]
[365817001,1749935208787,150.0,0.000189,2]
[365817002,1749935242106,-184.363976,0.00020187,2]
[365817003,1749935242129,-173.466071,0.00020666,2]
[365817004,1749935242151,-183.359265,0.00020703,2]
[365817005,1749935242174,-175.058,0.00020703,2]
[365817006,1749935242195,-6550.8228589,0.00020891,2]
[365817007,1749935242216,-196.4126756,0.00020987,2]
[365817008,1749935242238,-1200.0,0.00020997,2]
[365817009,1749935242258,-1294.67,0.00021032,2]
[365817010,1749935242278,-300.0,0.00021153,2]
[365817011,1749935242300,-137.93024175,0.00021154,2]
[365817012,1749935254158,-362.06975825,0.00021154,2]
[365817013,1749935254185,-391.71865128,0.00021899,2]
[365817014,1749935254210,-300.0,0.00021899,2]
[365817015,1749935254242,-299.93026051,0.000219,6]
[365817028,1749935431936,-1278.2,0.00021039,2]
[365817029,1749935431946,-500.0,0.00021154,2]
[365817030,1749935431956,-153.85728298,0.00021817,2]
[365817031,1749935431965,-225.6793886,0.00021878,2]
[365817032,1749935431976,-894.722189,0.000219,6]
[365817033,1749935431986,-183.12,0.00021907,2]
[365817034,1749935431996,-500.0,0.00021916,2]
[365817035,1749935432005,-500.0,0.00021916,2]
[365817036,1749935432014,-290.72066257,0.00021916,2]
[365817037,1749935432024,-300.0,0.00021916,2]
[365817038,1749935432033,-500.0,0.00021917,4]
[365817039,1749935432043,-460.0,0.00021917,4]
[365817040,1749935432052,-460.0,0.00021917,4]
[365817041,1749935432063,-460.0,0.00021917,4]
[365817042,1749935432074,-460.0,0.00021917,4]
[365817043,1749935432083,-440.0,0.00021917,4]
[365817044,1749935432092,-463.6632907,0.00021917,4]
[365817045,1749935432101,-460.0,0.00021917,4]
[365817046,1749935432111,-440.0,0.00021917,4]
[365817047,1749935432120,-440.0,0.00021917,4]
[365817048,1749935432129,-460.0,0.00021917,4]
[365817049,1749935432139,-420.0,0.00021917,4]
[365817050,1749935432148,-420.0,0.00021917,4]
[365817051,1749935432158,-460.0,0.00021917,4]
[365817052,1749935432167,-359.06232774,0.00021917,4]
[365817053,1749935432176,-52.53984061,0.00021917,4]
[365817054,1749935432193,-407.46015939,0.00021917,4]
[365817055,1749935432202,-306.75854565,0.00021917,4]
[365817056,1749935432212,-460.0,0.00021917,4]
[365817057,1749935432221,-460.0,0.00021917,4]
[365817058,1749935432231,-440.0,0.00021917,4]
[365817059,1749935432240,-440.0,0.00021917,4]
[365817060,1749935432250,-460.0,0.00021917,4]
[365817061,1749935432259,-679.55,0.00021917,4]
[365817062,1749935432268,-460.0,0.00021917,4]
[365817063,1749935432277,-460.0,0.00021917,4]
[365817064,1749935432287,-542.82,0.00021917,4]
[365817065,1749935432296,-440.0,0.00021917,4]
[365817066,1749935432305,-182.88,0.00021917,4]
[365817067,1749935432314,-476.44314004,0.00021917,4]
[365817068,1749935432326,-460.0,0.00021917,4]
[365817069,1749935432335,-460.0,0.00021917,4]
[365817070,1749935432344,-440.0,0.00021917,4]
[365817071,1749935432353,-460.0,0.00021917,4]
[365817072,1749935432362,-460.0,0.00021917,4]
[365817073,1749935432373,-420.0,0.00021917,4]
[365817074,1749935432384,-460.0,0.00021917,4]
[365817075,1749935432394,-460.0,0.00021917,4]
[365817076,1749935432403,-460.0,0.00021917,4]
[365817077,1749935432412,-440.0,0.00021917,4]
[365817078,1749935432422,-460.0,0.00021917,4]
[365817079,1749935432432,-460.0,0.00021917,4]
[365817080,1749935432441,-460.0,0.00021917,4]
[365817081,1749935432450,-420.0,0.00021917,4]
[365817082,1749935432460,-460.0,0.00021917,4]
[365817083,1749935432469,-460.0,0.00021917,4]
[365817084,1749935432479,-420.0,0.00021917,4]
[365817085,1749935432642,-420.0,0.00021917,4]
[365817086,1749935432656,-460.0,0.00021917,4]
[365817087,1749935432666,-473.56363254,0.00021917,4]
[365817088,1749935432676,-410.0,0.00021917,4]
[365817089,1749935432686,-376.6216569,0.00021917,4]
[365817090,1749935432695,-420.0,0.00021917,4]
[365817091,1749935432705,-400.0,0.00021917,4]
[365817092,1749935432716,-430.0,0.00021917,4]
[365817093,1749935432727,-460.0,0.00021917,4]
[365817094,1749935432736,-460.0,0.00021917,4]
[365817095,1749935432746,-411.31524347,0.00021917,4]
[365817096,1749935432756,-460.0,0.00021917,4]
[365817097,1749935432765,-460.0,0.00021917,4]
[365817098,1749935432776,-440.0,0.00021917,4]
[365817099,1749935432785,-460.0,0.00021917,4]
[365817100,1749935432795,-460.0,0.00021917,4]
[365817101,1749935432805,-420.0,0.00021917,4]
[365817102,1749935432814,-400.0,0.00021917,4]
[365817103,1749935432826,-460.0,0.00021917,4]
[365817104,1749935432835,-460.0,0.00021917,4]
[365817105,1749935432844,-460.0,0.00021917,4]
[365817106,1749935432854,-460.0,0.00021917,4]
[365817107,1749935432863,-191.8996673,0.00021917,4]
[365817108,1749935432873,-430.0,0.00021917,4]
[365817109,1749935432883,-460.0,0.00021917,4]
[365817110,1749935432892,-495.21136589,0.00021917,4]
[365817112,1749935432901,-460.0,0.00021917,4]
[365817114,1749935432910,-460.0,0.00021917,4]
[365817115,1749935432919,-375.74198869,0.00021917,4]
[365817117,1749935432929,-460.0,0.00021917,4]
[365817119,1749935432938,-1560.62,0.00021917,4]
[365817121,1749935432947,-470.48619459,0.00021917,4]
[365817123,1749935432958,-460.0,0.00021917,4]
[365817125,1749935432967,-460.0,0.00021917,4]
[365817127,1749935432977,-460.0,0.00021917,4]
[365817128,1749935432986,-460.0,0.00021917,4]
[365817129,1749935432996,-400.0,0.00021917,4]
[365817131,1749935433005,-250.0,0.00021917,4]
[365817133,1749935433014,-786.0,0.00021917,4]
[365817135,1749935433024,-440.0,0.00021917,4]
[365817136,1749935433034,-460.0,0.00021917,4]
[365817138,1749935433044,-151.0,0.00021917,4]
[365817140,1749935433054,-271.97510472,0.00021917,4]
[365817142,1749935433063,-440.0,0.00021917,4]
[365817143,1749935433075,-151.0,0.00021917,4]
[365817144,1749935433085,-497.88,0.00021917,4]
[365817145,1749935433094,-500.0,0.00021917,4]
[365817146,1749935433104,-151.0,0.00021917,4]
[365817147,1749935433114,-151.0,0.00021917,4]
[365817148,1749935433124,-410.0,0.00021917,4]
[365817149,1749935433133,-460.0,0.00021917,4]
[365817150,1749935433142,-460.0,0.00021917,4]
[365817151,1749935433151,-460.0,0.00021917,4]
[365817152,1749935433161,-460.0,0.00021917,4]
[365817153,1749935433171,-267.03578636,0.00021917,4]
[365817154,1749935433180,-460.0,0.00021917,4]
[365817155,1749935433189,-430.0,0.00021917,4]
[365817156,1749935433199,-420.0,0.00021917,4]
[365817157,1749935433208,-511.51,0.00021917,4]
[365817158,1749935433217,-460.0,0.00021917,4]
[365817159,1749935433227,-1151.42,0.00021917,4]
[365817160,1749935433236,-460.0,0.00021917,4]
[365817161,1749935433245,-460.0,0.00021917,4]
[365817162,1749935433255,-1606.54,0.00021917,4]
[365817163,1749935433264,-460.0,0.00021917,4]
[365817164,1749935433274,-460.0,0.00021917,4]
[365817165,1749935433283,-460.0,0.00021917,4]
[365817166,1749935433292,-460.0,0.00021917,4]
[365817167,1749935433302,-500.0,0.00021917,4]
[365817168,1749935433311,-460.0,0.00021917,4]
[365817169,1749935433322,-151.0,0.00021917,4]
[365817170,1749935433332,-500.0,0.00021917,4]
[365817171,1749935433342,-460.0,0.00021917,4]
[365817172,1749935433352,-261.25242609,0.00021917,4]
[365817173,1749935433361,-201.20239887,0.00021917,4]
[365817174,1749935433371,-500.0,0.00021917,4]
[365817175,1749935433380,-460.0,0.00021917,4]
[365817176,1749935433389,-500.0,0.00021917,4]
[365817177,1749935433399,-460.0,0.00021917,4]
[365817178,1749935433409,-151.0,0.00021917,4]
[365817179,1749935433419,-460.0,0.00021917,4]
[365817180,1749935433428,-420.0,0.00021917,4]
[365817181,1749935433438,-500.0,0.00021917,4]
[365817182,1749935433448,-500.0,0.00021917,4]
[365817183,1749935433458,-1137.27,0.00021917,4]
[365817184,1749935433467,-460.0,0.00021917,4]
[365817185,1749935433476,-151.0,0.00021917,4]
[365817186,1749935433486,-247.09869764,0.00021917,4]
[365817187,1749935433496,-460.0,0.00021917,4]
[365817188,1749935433506,-1400.91,0.00021917,4]
[365817189,1749935433515,-460.0,0.00021917,4]
[365817190,1749935433524,-460.0,0.00021917,4]
[365817191,1749935433534,-460.0,0.00021917,4]
[365817192,1749935433543,-460.0,0.00021917,4]
[365817193,1749935433553,-460.0,0.00021917,4]
[365817194,1749935433563,-460.0,0.00021917,4]
[365817195,1749935433573,-3378.07,0.00021917,4]
[365817196,1749935433582,-500.0,0.00021917,4]
[365817197,1749935433592,-460.0,0.00021917,4]
[365817198,1749935433601,-500.0,0.00021917,4]
[365817199,1749935433611,-521.68,0.00021917,4]
[365817200,1749935433620,-460.0,0.00021917,4]
[365817201,1749935433630,-500.0,0.00021917,4]
[365817202,1749935433639,-151.0,0.00021917,4]
[365817203,1749935433650,-500.0,0.00021917,4]
[365817204,1749935433662,-500.0,0.00021917,4]
[365817205,1749935433672,-226.05021002,0.00021917,4]
[365817206,1749935433681,-271.13814479,0.00021917,4]
[365817207,1749935433691,-151.0,0.00021917,4]
[365817208,1749935433700,-193.34465452,0.00021917,4]
[365817209,1749935433710,-151.0,0.00021917,4]
[365817210,1749935433719,-287.63485949,0.00021917,4]
[365817211,1749935433730,-440.0,0.00021917,4]
[365817212,1749935433739,-460.0,0.00021917,4]
[365817213,1749935433748,-460.0,0.00021917,4]
[365817214,1749935433758,-500.0,0.00021917,4]
[365817215,1749935433767,-420.0,0.00021917,4]
[365817216,1749935433776,-768.84,0.00021917,4]
[365817217,1749935433786,-460.0,0.00021917,4]
[365817218,1749935433796,-1373.01,0.00021917,4]
[365817219,1749935433806,-460.0,0.00021917,4]
[365817220,1749935433815,-460.0,0.00021917,4]
[365817221,1749935433826,-440.0,0.00021917,4]
[365817222,1749935433836,-460.0,0.00021917,4]
[365817223,1749935433845,-460.0,0.00021917,4]
[365817224,1749935433855,-460.0,0.00021917,4]
[365817225,1749935433865,-460.0,0.00021917,4]
[365817226,1749935433874,-460.0,0.00021917,4]
[365817227,1749935433884,-460.0,0.00021917,4]
[365817228,1749935433893,-460.0,0.00021917,4]
[365817229,1749935433903,-460.0,0.00021917,4]
[365817230,1749935433912,-1100.99,0.00021917,4]
[365817231,1749935433922,-460.0,0.00021917,4]
[365817232,1749935433931,-460.0,0.00021917,4]
[365817233,1749935433941,-460.0,0.00021917,4]
[365817234,1749935433950,-460.0,0.00021917,4]
[365817235,1749935433959,-400.82147598,0.00021917,4]
[365817236,1749935433969,-460.0,0.00021917,4]
[365817237,1749935433978,-460.0,0.00021917,4]
[365817238,1749935433988,-506.1688868,0.00021917,4]
[365817239,1749935433997,-460.0,0.00021917,4]
[365817240,1749935434007,-176.06,0.00021917,4]
[365817241,1749935434016,-1006.56,0.00021917,4]
[365817242,1749935434026,-460.0,0.00021917,4]
[365817243,1749935434035,-460.0,0.00021917,4]
[365817244,1749935434044,-242.3195849,0.00021917,4]
[365817245,1749935434054,-886.4,0.00021917,4]
[365817246,1749935434063,-460.0,0.00021917,4]
[365817247,1749935434072,-460.0,0.00021917,4]
[365817248,1749935434081,-460.0,0.00021917,4]
[365817249,1749935434090,-1001.86,0.00021917,4]
[365817250,1749935434099,-460.0,0.00021917,4]
[365817251,1749935434108,-3137.34,0.00021917,4]
[365817252,1749935434117,-460.0,0.00021917,4]
[365817253,1749935434126,-420.0,0.00021917,4]
[365817254,1749935434135,-460.0,0.00021917,4]
[365817255,1749935434144,-460.0,0.00021917,4]
[365817256,1749935434153,-460.0,0.00021917,4]
[365817257,1749935434162,-3348.27,0.00021917,4]
[365817258,1749935434171,-636.1,0.00021917,4]
[365817259,1749935434181,-1209.67,0.00021917,4]
[365817260,1749935434190,-460.0,0.00021917,4]
[365817261,1749935434199,-814.04,0.00021917,4]
[365817262,1749935434209,-460.0,0.00021917,4]
[365817263,1749935434219,-151.0,0.00021917,4]
[365817264,1749935434228,-151.0,0.00021917,2]
[365817265,1749935434237,-230.39526265,0.00021917,4]
[365817266,1749935434247,-2511.11,0.00021917,4]
[365817267,1749935434256,-213.02647967,0.00021917,4]
[365817268,1749935434266,-198.0,0.00021917,4]
[365817269,1749935434275,-3408.26,0.00021917,4]
[365817270,1749935434284,-460.0,0.00021917,4]
[365817271,1749935434294,-253.29229518,0.00021917,4]
[365817272,1749935434303,-500.0,0.00021917,4]
[365817273,1749935434312,-460.0,0.00021917,4]
[365817274,1749935434321,-460.0,0.00021917,4]
[365817275,1749935434330,-460.0,0.00021917,4]
[365817276,1749935434339,-410.0,0.00021917,4]
[365817277,1749935434349,-3586.31,0.00021917,4]
[365817278,1749935434358,-524.24,0.00021917,4]
[365817279,1749935434367,-460.0,0.00021917,4]
[365817280,1749935434376,-1361.9,0.00021917,4]
[365817281,1749935434385,-460.0,0.00021917,4]
[365817282,1749935434394,-776.91,0.00021917,4]
[365817283,1749935434404,-460.0,0.00021917,4]
[365817284,1749935434413,-370.0,0.00021917,4]
[365817285,1749935434423,-440.0,0.00021917,4]
[365817286,1749935434433,-460.0,0.00021917,4]
[365817287,1749935434443,-3766.7,0.00021917,4]
[365817288,1749935434452,-460.0,0.00021917,2]
[365817289,1749935434462,-390.0,0.00021917,4]
[365817290,1749935434471,-460.0,0.00021917,4]
[365817291,1749935434480,-572.14,0.00021917,4]
[365817292,1749935434489,-460.0,0.00021917,4]
[365817293,1749935434498,-430.0,0.00021917,4]
[365817294,1749935434507,-460.0,0.00021917,4]
[365817295,1749935434517,-181.30212675,0.00021917,4]
[365817296,1749935434527,-460.0,0.00021917,4]
[365817297,1749935434536,-460.0,0.00021917,4]
[365817298,1749935434545,-460.0,0.00021917,4]
[365817299,1749935434555,-460.0,0.00021917,4]
[365817300,1749935434565,-2251.75,0.00021917,4]
[365817301,1749935434574,-460.0,0.00021917,4]
[365817302,1749935434584,-460.0,0.00021917,4]
[365817303,1749935434593,-460.0,0.00021917,4]
[365817304,1749935434602,-460.0,0.00021917,4]
[365817305,1749935434611,-151.0,0.00021917,4]
[365817306,1749935434621,-460.0,0.00021917,4]
[365817307,1749935434631,-1606.22,0.00021917,4]
[365817308,1749935434640,-440.0,0.00021917,4]
[365817309,1749935434651,-460.0,0.00021917,4]
[365817310,1749935434662,-151.38444775,0.00021917,4]
[365817311,1749935434672,-2303.18,0.00021917,4]
[365817312,1749935434681,-500.0,0.00021917,4]
[365817313,1749935434691,-440.0,0.00021917,4]
[365817314,1749935434700,-460.0,0.00021917,4]
[365817315,1749935434709,-151.0,0.00021917,4]
[365817316,1749935434718,-612.26,0.00021917,4]
[365817317,1749935434728,-466.36,0.00021917,4]
[365817318,1749935434743,-151.0,0.00021917,4]
[365817319,1749935434752,-500.0,0.00021917,4]
[365817320,1749935434762,-460.0,0.00021917,4]
[365817321,1749935434773,-460.0,0.00021917,4]
[365817322,1749935434783,-786.0,0.00021944,4]
[365817323,1749935434793,-151.0,0.00021944,4]
[365817324,1749935434803,-151.0,0.00021944,4]
[365817325,1749935434812,-500.0,0.00021944,4]
[365817326,1749935434822,-233.065671,0.00021944,4]
[365817327,1749935434832,-500.0,0.00021944,4]
[365817328,1749935434841,-152.63117165,0.00021944,4]
[365817329,1749935434851,-500.0,0.00021944,4]
[365817330,1749935434860,-500.0,0.00021944,4]
[365817331,1749935434870,-500.0,0.00021944,4]
[365817332,1749935434879,-151.0,0.00021944,4]
[365817333,1749935434888,-523.16588728,0.00021944,4]
[365817334,1749935434897,-500.0,0.00021944,4]
[365817335,1749935434907,-151.0,0.00021944,4]
[365817336,1749935434916,-182.90148304,0.00021944,4]
[365817337,1749935434925,-151.0,0.00021944,4]
[365817338,1749935434934,-500.0,0.00021944,4]
[365817339,1749935434943,-151.0,0.00021944,4]
[365817340,1749935434952,-500.0,0.00021944,4]
[365817341,1749935434961,-151.0,0.00021944,4]
[365817342,1749935434971,-151.0,0.00021944,4]
[365817343,1749935434980,-500.0,0.00021944,4]
[365817344,1749935434990,-633.78221275,0.00021947,2]
[365817345,1749935435000,-500.0,0.00021971,4]
[365817346,1749935435009,-786.0,0.00021972,4]
[365817347,1749935435019,-245.0,0.00021972,4]
[365817348,1749935435028,-500.0,0.00021972,4]
[365817349,1749935435037,-500.0,0.00021972,4]
[365817350,1749935435047,-500.0,0.00021972,4]
[365817351,1749935435056,-500.000001,0.00021972,4]
[365817352,1749935435065,-500.0,0.00021972,4]
[365817353,1749935435075,-151.0,0.00021972,4]
[365817354,1749935435084,-500.0,0.00021972,4]
[365817355,1749935435094,-206.19301128,0.00021972,4]
[365817356,1749935435103,-151.0,0.00021972,4]
[365817357,1749935435112,-500.0,0.00021972,4]
[365817358,1749935435121,-500.0,0.00021972,4]
[365817359,1749935435130,-151.0,0.00021972,4]
[365817360,1749935435139,-151.0,0.00021972,4]
[365817361,1749935435149,-500.0,0.00021972,4]
[365817362,1749935435158,-157.51925235,0.00021981,2]
[365817363,1749935435167,-786.0,0.00021999,4]
[365817364,1749935435177,-500.0,0.00021999,4]
[365817365,1749935435186,-500.0,0.00021999,4]
[365817366,1749935435195,-500.0,0.00021999,4]
[365817367,1749935435204,-500.0,0.00021999,4]
[365817368,1749935435213,-151.0,0.00021999,4]
[365817369,1749935435222,-367.07771858,0.00021999,4]
[365817370,1749935435232,-500.0,0.00021999,4]
[365817371,1749935435241,-500.0,0.00021999,4]
[365817372,1749935435250,-151.0,0.00021999,4]
[365817373,1749935435259,-198.0,0.00021999,4]
[365817374,1749935435269,-500.0,0.00021999,4]
[365817375,1749935435278,-1624.43579241,0.00022,2]
[365817376,1749935435287,-177.0,0.00022,2]
[365817377,1749935435297,-894.72218881,0.00022003,6]
[365817378,1749935435307,-786.0,0.00022027,4]
[365817379,1749935435316,-500.0,0.00022027,4]
[365817380,1749935435325,-500.0,0.00022027,4]
[365817381,1749935435335,-500.0,0.00022027,4]
[365817382,1749935435345,-500.0,0.00022027,4]
[365817383,1749935435354,-151.0,0.00022027,4]
[365817384,1749935435364,-500.0,0.00022027,4]
[365817385,1749935435372,-500.0,0.00022027,4]
[365817386,1749935435382,-205.80618261,0.00022027,4]
[365817387,1749935435391,-500.0,0.00022027,4]
[365817388,1749935435400,-786.0,0.00022054,4]
[365817389,1749935435410,-500.0,0.00022054,4]
[365817390,1749935435419,-500.0,0.00022054,4]
[365817391,1749935435428,-500.0,0.00022054,4]
[365817392,1749935435438,-500.0,0.00022054,4]
[365817393,1749935435447,-193.15774951,0.00022054,4]
[365817394,1749935435456,-500.0,0.00022054,4]
[365817395,1749935435465,-151.0,0.00022054,4]
[365817396,1749935435474,-500.0,0.00022054,4]
[365817397,1749935435484,-786.0,0.00022081,4]
[365817398,1749935435493,-500.0,0.00022081,4]
[365817399,1749935435503,-315.83081185,0.00022081,4]
[365817400,1749935435512,-500.0,0.00022081,4]
[365817401,1749935435522,-500.0,0.00022081,4]
[365817402,1749935435531,-500.0,0.00022081,4]
[365817403,1749935435540,-500.0,0.00022081,4]
[365817404,1749935435550,-894.72218881,0.00022107,6]
[365817405,1749935435559,-786.0,0.00022109,4]
[365817406,1749935435568,-500.0,0.00022109,4]
[365817407,1749935435578,-500.0,0.00022109,4]
[365817408,1749935435587,-500.0,0.00022109,4]
[365817409,1749935435596,-500.0,0.00022109,4]
[365817410,1749935435605,-500.0,0.00022109,4]
[365817411,1749935435614,-786.0,0.00022136,4]
[365817412,1749935435623,-500.0,0.00022136,4]
[365817413,1749935435632,-500.0,0.00022136,4]
[365817414,1749935435642,-500.0,0.00022136,4]
[365817415,1749935435655,-500.0,0.00022136,4]
[365817416,1749935435664,-500.0,0.00022136,4]
[365817417,1749935435674,-786.0,0.00022164,4]
[365817418,1749935435684,-469.03557909,0.00022164,4]
[365817419,1749935435693,-500.0,0.00022164,4]
[365817420,1749935435703,-500.0,0.00022164,4]
[365817421,1749935435712,-500.0,0.00022164,4]
[365817422,1749935435722,-500.0,0.00022164,4]
[365817423,1749935435843,-500.0,0.0002219,4]
[365817424,1749935435854,-786.0,0.00022191,4]
[365817425,1749935435864,-500.0,0.00022191,4]
[365817426,1749935435873,-500.0,0.00022191,4]
[365817427,1749935435884,-500.0,0.00022191,4]
[365817428,1749935435893,-509.47087601,0.00022191,4]
[365817429,1749935435904,-420.0,0.00022191,4]
[365817430,1749935435913,-420.0,0.00022191,4]
[365817431,1749935435923,-326.08095417,0.00022191,4]
[365817432,1749935435932,-410.0,0.00022191,4]
[365817433,1749935435942,-460.0,0.00022191,4]
[365817434,1749935435951,-460.0,0.00022191,4]
[365817435,1749935435961,-460.0,0.00022191,4]
[365817436,1749935435971,-460.0,0.00022191,4]
[365817437,1749935435981,-594.79258161,0.00022191,4]
[365817438,1749935435990,-400.0,0.00022191,4]
[365817439,1749935436000,-460.0,0.00022191,4]
[365817440,1749935436010,-679.55,0.00022191,4]
[365817441,1749935436019,-460.0,0.00022191,4]
[365817442,1749935436030,-507.85,0.00022191,4]
[365817443,1749935436039,-542.82,0.00022191,4]
[365817444,1749935436048,-460.0,0.00022191,4]
[365817445,1749935436058,-460.0,0.00022191,4]
[365817446,1749935436067,-460.0,0.00022191,4]
[365817447,1749935436078,-460.0,0.00022191,4]
[365817448,1749935436087,-460.0,0.00022191,4]
[365817449,1749935436096,-154.13313598,0.00022191,4]
[365817450,1749935436105,-460.0,0.00022191,4]
[365817451,1749935436115,-460.0,0.00022191,4]
[365817452,1749935436124,-460.0,0.00022191,4]
[365817453,1749935436134,-460.0,0.00022191,4]
[365817454,1749935436143,-400.0,0.00022191,4]
[365817455,1749935436153,-460.0,0.00022191,4]
[365817456,1749935436162,-330.0,0.00022191,4]
[365817457,1749935436171,-460.0,0.00022191,4]
[365817458,1749935436181,-386.28705695,0.00022191,4]
[365817459,1749935436190,-460.0,0.00022191,4]
[365817460,1749935436199,-460.0,0.00022191,4]
[365817461,1749935436208,-460.0,0.00022191,4]
[365817462,1749935436218,-460.0,0.00022191,4]
[365817463,1749935436227,-460.0,0.00022191,4]
[365817464,1749935436237,-460.0,0.00022191,4]
[365817465,1749935436246,-461.26777517,0.00022191,4]
[365817466,1749935436256,-460.0,0.00022191,4]
[365817467,1749935436265,-430.0,0.00022191,4]
[365817468,1749935436275,-460.0,0.00022191,4]
[365817469,1749935436284,-460.0,0.00022191,4]
[365817470,1749935436295,-460.0,0.00022191,4]
[365817471,1749935436305,-1560.62,0.00022191,4]
[365817472,1749935436314,-350.0,0.00022191,4]
[365817473,1749935436324,-455.52381841,0.00022191,4]
[365817474,1749935436333,-460.0,0.00022191,4]
[365817475,1749935436342,-460.0,0.00022191,4]
[365817476,1749935436351,-497.88,0.00022191,4]
[365817477,1749935436361,-460.0,0.00022191,4]
[365817478,1749935436371,-460.0,0.00022191,4]
[365817479,1749935436380,-460.0,0.00022191,4]
[365817480,1749935436390,-460.0,0.00022191,4]
[365817481,1749935436400,-460.0,0.00022191,4]
[365817482,1749935436410,-511.51,0.00022191,4]